Cogmind - Beta 13 @@@ ROGUE MODE // 2024.05.31 @ 23:24:11 Player: wojo Result: Destroyed by L-31 Rogue with Katana Performance ------------- Evolutions (1) 500 Regions Visited (2) 400 Robots Destroyed (21) 105 Value Destroyed (468) 468 Prototype IDs (2) 40 Alien Tech Used (0) 0 Bonus (2) 2 TOTAL SCORE: 1515 Bonus ------- High Alert Combat Kills 2 Cogmind --------- Core Integrity 0/400 Matter 20/300 Energy 100/100 System Corruption 1% Temperature Cool (6) Movement Core (400) Ox7 Location -9/Materials Parts ------- > --- POWER (2) -------- (None) > --- PROPULSION (2) --- (None) > --- UTILITY (2) ------ Large Storage Unit Transport Network Coupler > --- WEAPON (3) ------- Shotgun > --- INVENTORY (15) --- Ion Engine Ion Engine Improved Flight Unit Improved Flight Unit Improved Flight Unit Assault Rifle Assault Rifle Assault Rifle Peak State ------------ > --- POWER ------------ Ion Engine Ion Engine > --- PROPULSION ------- Light Treads Improved Flight Unit > --- UTILITY ---------- Large Storage Unit Transport Network Coupler > --- WEAPON ----------- Medium Laser Grenade Launcher Grenade Launcher > --- INVENTORY -------- Ion Engine Ion Engine Ion Engine Light Treads Light Treads Improved Flight Unit Improved Flight Unit Assault Rifle Assault Rifle Assault Rifle Shotgun Improved Assault Rifle Improved Assault Rifle [Rating: 13] Favorites ----------- Power Ion Engine Engine Ion Engine Propulsion Light Treads Treads Light Treads Flight Unit Improved Flight Unit Utility Small Storage Unit Device Seismic Detector Storage Small Storage Unit Processor Transport Network Coupler Weapon Grenade Launcher Energy Gun Medium Laser Ballistic Gun Light Assault Rifle Launcher Grenade Launcher Build | -11 -10 -9 ------- Run | Yrd Mat Mat Slots Evolved 2 | . . 2 Power 1 | . . 1 Propulsion . | . . . Utility . | . . . Weapon 1 | . . 1 Parts Attached 23 | 6 3 14 Power 3 | 1 . 2 Engine 3 | 1 . 2 Core . | . . . Reactor . | . . . Propulsion 5 | 2 . 3 Treads 4 | 2 . 2 Leg . | . . . Wheel . | . . . Hover . | . . . Flight 1 | . . 1 Utility 5 | 1 . 4 Device 2 | . . 2 Storage 2 | 1 . 1 Processor 1 | . . 1 Hackware . | . . . Protection . | . . . Artifact . | . . . Weapon 10 | 2 3 5 Energy Gun 1 | . . 1 Energy Cannon . | . . . Ballistic Gun 6 | 2 1 3 Ballistic Cannon . | . . . Launcher 3 | . 2 1 Special Weapon . | . . . Impact Weapon . | . . . Slashing Weapon . | . . . Piercing Weapon . | . . . Special Melee Weapon . | . . . Unidentified Prototypes 2 | . . 2 Parts Lost 11 | . . 11 Power 3 | . . 3 Propulsion 3 | . . 3 Utility 1 | . . 1 Weapon 4 | . . 4 Highest Loss Streak 10 | . . 10 To Critical Strikes . | . . . Average Slot Usage (%) 87 | . 84 88 Engine 17 | . 14 19 Treads 22 | . 28 19 Device 1 | . . 3 Storage 12 | . 14 11 Processor 3 | . . 5 Energy Gun 6 | . . 9 Ballistic Gun 5 | . 12 1 Launcher 17 | . 15 18 Naked Turns . | . . . Heaviest Build 39 | 12 16 39 Greatest Support 40 | 40 40 40 Greatest Overweight (x) 8 | . . 8 Average Overweight (x) . | . . . Largest Inventory Capacity 15 | 8 8 15 Average Capacity 10 | 6 8 13 Most Carried 13 | 2 8 13 Average Carried 7 | 1 6 9 Final Capacity 15 | 8 8 15 Final Carried 8 | 2 8 8 Class Distribution -------------------- 53% | Mutant 25% | Bomber 20% | Skirmisher Dominant Class ---------------- Mutant | -10/Materials Bomber | -9/Materials Resources | -11 -10 -9 ----------- Run | Yrd Mat Mat Matter Collected 337 | 237 . 100 Remotely 43 | . . 43 Salvage Created 488 | . 163 325 Parts 37 | . 13 24 Haulers Intercepted 2 | . . 2 Recyclers Shooed 1 | . 1 . Parts Field Recycled . | . . . Retrieved Matter . | . . . Parts Self-Destructed . | . . . Prevented . | . . . Kills | -11 -10 -9 ------- Run | Yrd Mat Mat Combat Hostiles Destroyed 14 | . 2 12 Guns 6 | . . 6 AOE 8 | . 2 6 Classes Destroyed 6 | . 4 2 Builder 2 | . 1 1 Hauler 2 | . . 2 Recycler 1 | . 1 . Watcher 2 | . 1 1 Swarmer 5 | . . 5 Grunt 9 | . 2 7 Best Kill Streak 6 | . 4 6 Combat Bots Only 5 | . 1 5 Max Kills in Single Turn 3 | . 2 3 Gunslinging 1 | . . 1 Exploded 2 | . 1 2 Melee . | . . . Uniques/NPCs Destroyed . | . . . Combat | -11 -10 -9 -------- Run | Yrd Mat Mat Hostile Shots Fired 175 | . 12 163 Missed 44 | . 5 39 Damage Taken 1599 | . 118 1481 Core 423 | . 15 408 Absorbed by Shields . | . . . Core Remaining (%) 97 | 100 94 . Volleys Fired 39 | . 11 28 Largest 3 | . 2 3 Hottest 110 | . 60 110 Shots Fired 59 | . 17 42 Gun 42 | . 10 32 Cannon . | . . . Launcher 17 | . 7 10 Special . | . . . Kinetic 27 | . 10 17 Thermal 15 | . . 15 Explosive 17 | . 7 10 Electromagnetic . | . . . Robot Hit Streak 11 | . 6 11 Robot Miss Streak 3 | . 2 3 Penetration Max . | . . . Secondary Targets 1 | . . 1 Max Gunslinging Chain 1 | . . 1 Shots Hit Robots 35 | . 7 28 Core Hits 33 | . 9 24 Critical Kills . | . . . Critical Parts Destroyed . | . . . Critical Strikes 1 | . . 1 Burn 1 | . . 1 Melee Attacks . | . . . Impact . | . . . Slashing . | . . . Piercing . | . . . Sneak Attacks . | . . . Combat Hostiles . | . . . Follow-up Attacks . | . . . Damage Inflicted 1212 | . 286 926 Guns 379 | . 40 339 Cannons . | . . . Explosions 810 | . 246 564 Melee . | . . . Ramming 23 | . . 23 Kinetic 254 | . 40 214 Thermal 125 | . . 125 Explosive 810 | . 246 564 Electromagnetic . | . . . Impact . | . . . Slashing . | . . . Piercing . | . . . Highest Corruption 1 | . . 1 Average Corruption 1 | . . 1 Corruption Purged . | . . . Corruption Blocked . | . . . Effects 4 | . . 4 Matter Fused 2 | . . 2 Data Loss (minor) 1 | . . 1 Data Loss (major) 1 | . . 1 Overload Shots . | . . . Overflow Damage 8 | . 8 . Projectiles . | . . . Explosions 8 | . 8 . Melee . | . . . Knockbacks . | . . . Impact . | . . . Kinetic . | . . . Secondary . | . . . Self-Inflicted Damage 115 | . 46 69 Shots 5 | . 2 3 Rammed 6 | . 1 5 Targets Rammed 6 | . 1 5 Kicked . | . . . Crushed . | . . . Highest Temperature 130 | . 10 130 Average Temperature 48 | . 7 50 Received Heat Transfer 219 | . 42 177 Siege Activations . | . . . Robots Corrupted . | . . . Combat Hostiles . | . . . Parts Fried . | . . . Impact Corruptions . | . . . Robots Melted . | . . . Combat Hostiles . | . . . Parts Melted . | . . . Heat Transferred 444 | . . 444 Parts Sabotaged . | . . . Parts Stolen . | . . . Parts Stripped . | . . . Power Chain Reactions . | . . . Alert | -11 -10 -9 ------- Run | Yrd Mat Mat Peak Influence 409 | . 224 409 Initial 94 | . . 94 Average 115 | . 76 168 Maximum Alert Level 2 | . 1 2 Low Security (%) 87 | 100 99 77 Level 1 12 | . . 21 Level 2 . | . . 1 Level 3 . | . . . Level 4 . | . . . Level 5 . | . . . High Security . | . . . Max Security . | . . . Squads Dispatched 3 | . 2 1 Investigation 2 | . 2 . Extermination . | . . . Reinforcement 1 | . . 1 Assault . | . . . Garrison . | . . . Intercept . | . . . Searches Triggered . | . . . Construction Impeded . | . . . Haulers Reinforced . | . . . Active Scanning Responses . | . . . Cargo Convoy Interrupts . | . . . Stealth | -11 -10 -9 --------- Run | Yrd Mat Mat Distress Signals 2 | . 1 1 Communications Jammed . | . . . Distress Signals . | . . . Times Spotted 27 | . 4 23 Peak Tracking Total 8 | . 2 8 Tactical Retreats 2 | . . 2 Traps | -11 -10 -9 ------- Run | Yrd Mat Mat Traps Triggered 1 | . . 1 Indirectly . | . . . Trap Hack Attempts . | . . . Triggered . | . . . Disarmed . | . . . Reprogrammed . | . . . Reused . | . . . Traps Extracted . | . . . Installed . | . . . Triggered . | . . . Machines | -11 -10 -9 ---------- Run | Yrd Mat Mat Machines Disabled 6 | . 5 1 Max in Single Turn 4 | . 4 1 Machines Repaired . | . . . Machines Dismantled . | . . . Machines Sabotaged . | . . . Overloaded Fab Kills . | . . . Hacking | -11 -10 -9 --------- Run | Yrd Mat Mat Machines Accessed 3 | . 2 1 Terminals 3 | . 2 1 Fabricators . | . . . Repair Stations . | . . . Recycling Units . | . . . Scanalyzers . | . . . Garrison Access . | . . . Total Hacks 10 | . 9 1 Successful 4 | . 4 . Failed 6 | . 5 1 Catastrophic 1 | . 1 . Database Lockouts . | . . . Manual . | . . . Terminals 10 | . 9 1 Fabricators . | . . . Repair Stations . | . . . Recycling Units . | . . . Scanalyzers . | . . . Garrison Access . | . . . Terminal Hacks 4 | . 4 . Record 1 | . 1 . Locate Traps 1 | . 1 . Hauler Manifests 1 | . 1 . Zone Layout 1 | . 1 . Fabricator Hacks . | . . . Repair Station Hacks . | . . . Recycling Unit Hacks . | . . . Scanalyzer . | . . . Garrison Access Hacks . | . . . Unauthorized Hacks . | . . . Terminals . | . . . Fabricators . | . . . Repair Stations . | . . . Recycling Units . | . . . Scanalyzers . | . . . Garrison Access . | . . . Data Cores Recovered . | . . . Used . | . . . Hacking Detections 3 | . 2 1 Full Trace Events 2 | . 2 . Feedback Events . | . . . Feedback Blocked . | . . . Robot Schematics Acquired . | . . . Robots Built . | . . . Authchips . | . . . Time . | . . . Total Robot Build Rating . | . . . Part Schematics Acquired . | . . . Parts Built . | . . . Authchips . | . . . Time . | . . . Total Part Build Rating . | . . . Parts Repaired . | . . . Time . | . . . Parts Recycled . | . . . Recycled Matter . | . . . Retrieved Matter . | . . . Retrieved Components . | . . . Parts Scanalyzed . | . . . Part Schematics Acquired . | . . . Parts Damaged . | . . . Bothacking | -11 -10 -9 ------------ Run | Yrd Mat Mat Used RIF Installer . | . . . Robots Hacked . | . . . Non-combat . | . . . Combat . | . . . Robot Hacks Applied . | . . . Relay Couplers Released . | . . . Fabnet Peak Effective % . | . . . Robots Rewired . | . . . Allies Hacked . | . . . Hacks Repelled . | . . . Allies | -11 -10 -9 -------- Run | Yrd Mat Mat Total Allies . | . . . Largest Group . | . . . Highest-Rated Group . | . . . Highest-Rated Ally . | . . . Total Orders . | . . . Ally Attacks . | . . . Total Damage . | . . . Kills . | . . . Allies Corrupted . | . . . Allies Melted . | . . . Intel | -11 -10 -9 ------- Run | Yrd Mat Mat Robot Analysis Total . | . . . Derelict Logs Recovered . | . . . Drone Launches . | . . . Drone Recoveries . | . . . Exploration | -11 -10 -9 ------------- Run | Yrd Mat Mat Turns Passed 789 | 118 237 434 Spaces Moved 395 | 73 122 200 Core 9 | 8 . 1 Treads 386 | 65 122 199 Legs . | . . . Wheels . | . . . Hover . | . . . Flight . | . . . Fastest Speed 50 | 50 160 160 Average Speed 160 | 147 160 165 Slowest Speed 450 | 160 160 450 Overloaded Moves . | . . . Propulsion Burnouts . | . . . Robots Hopped . | . . . Cave-ins Triggered . | . . . Exploration Rate (%) 20 | 6 31 23 Regions Visited 2 Branch Regions . Pre-discovered Areas . | . . . Known Exits Taken . | . . . Unknown Exits Taken 2 | 1 1 . Scrap Searched . | . . . Spaces Dug 10 | . 10 . Terrain Destroyed 124 | . 60 64 Melee . | . . . Projectile . | . . . AOE 124 | . 60 64 Terrain Rammed . | . . . Walls Destroyed . | . . . Machines Disabled . | . . . Actions | -11 -10 -9 --------- Run | Yrd Mat Mat Total 483 | 80 147 256 Wait . | . . . Move 393 | 72 121 200 Hop . | . . . Pick Up 17 | 2 8 7 Fast Attach 11 | 6 1 4 Attach 7 | . . 7 Detach . | . . . Swap 5 | . 2 3 Drop 5 | . 3 2 Fire 39 | . 11 28 Melee . | . . . Ram . | . . . Kick . | . . . Crush 6 | . 1 5 Escape Stasis . | . . . Rewire . | . . . Trap . | . . . Miscellaneous . | . . . Route ------- -11/Scrapyard -10/Materials -9/Materials History --------- Turn | Location | Event 10 | -11/Scrapyard | Discovered new exit (range 14) 119 | -11/Scrapyard | Entered Materials 302 | -10/Materials | Build established: Mutant 323 | -10/Materials | Discovered new exit (range 11) 356 | -10/Materials | Entered another Materials area 356 | -9/Materials | Evolved 2 slots: Power x1, Weapon x1 739 | -9/Materials | Core integrity fell below 50% 786 | -9/Materials | Core integrity fell below 20% 790 | -9/Materials | Destroyed by L-31 Rogue with Katana Last Messages --------------- S-10 Pest destroyed. Switching to secondary target: S-10 Pest. S-10 Pest destroyed. U-05 Engineer builds a Door. Acquired 17 matter. K-01 Serf collects debris. Imp. Assault Rifle destroyed. K-01 Serf collects debris. Acquired 11 matter. K-01 Serf collects debris. K-01 Serf destroyed. K-01 Serf collects debris. Imp. Assault Rifle severed. K-01 Serf collects debris. Acquired 14 matter. M-13 Machinist repairs Heat Sink. Ion Engine destroyed. Acquired 15 matter. K-01 Serf collects debris. Lgt. Treads destroyed. Map ----- +----------------------------------------------------+ | ?????????????????????????????????????????????????? | | ?????????????????????????????????????????????????? | | ?????????????????????????????????????????????????? | | ?????????????????????????????????????????????????? | | ?????????????????????????????????????????????????? | | ??????????????a??????????????????????????????????? | | ?????????????????????????????????????????????????? | | ??????????????????a??????????????????????????????? | | ?????????????????????????????????????????????????? | | ?????????????????????????????????????????????????? | | ?????????????????????????????????????????????????? | | ?????????????????????????????????????????????? ?? | | ?????????????????????????????????????????##?? "?? | | ?????????????????##?##########?????????? #? ""? | | ???????????????? /??????????? #? """ | | ????????????????""" """ """ #??????????? ? | | ????????????????""" """ """ ##?????????? # | | ??????????????????" """ """ #?????##### # | | ???????????????? ??? #??????? === | | ????????????????? ???? % ????????? =[== === | | ???????????????###+##??#/#??????????? =%=% === = | | ????????????#### ###Y##?????????? [[% | | ??????????? " g =%=#??????????# | | ?????????? "T %=k############/ #????? | | ?????????? *[l* + # #?? | | ????????#+###+## =@* # """ ! #???????? | | ????????# ### %! # " #???????? | | ????????# !!! ??# [ % # "" #???????? | | ????????# !!! ??# +% """ #???????? | | ????????#! !!! ??# *# T" #???????? | | ????????# ??# ###;####### """ #???????? | | ????????# ??# # ## ! #???????? | | ????????# ??# # "" ############???????? | | ????????? ### # """ #??????????????????? | | ?############# # # R" #??????????????????? | | # """ #??????????????????? | | !% # #??????????????????? | | #??????????????????? | | ?############ ###########??????????????????? | | ????????????#! ! #????????????????????????????? | | ???????????## #*# ###?????????????????????????? | | ???????????# # # #????????????????????????? | | ???????????# # ## #????????#??????????????? | | ???????????# ## ## #???????# ????????????? | | ???????????## #!## #???????# ????????????? | | ???????????# # ## ##???????# ????????????? | | ???????????# # #### #????????? ????????????? | | ????########### ###### ##????????? ???????????? | | ????# = + #?????????# ???????????? | | ????# # ### #?????????# ???????????? | +----------------------------------------------------+ Best States ------------- Heat Dissipation 28 Energy Generation 15 Energy Capacity 400 Matter Stores 277 Matter Capacity 300 Sight Range 16 Terrain Scan Density 10 Evasion (%) 40 Recoil Reduction 2 Item Schematics ----------------- None Robot Schematics ------------------ None Fabricated ------------ Nothing Alien Tech Used ----------------- None Achievements -------------- None Challenges ------------ None Game ------ Seed PhasePotentialGravjet Manual? 0 Play Time 00:13:39 Cumulative 5.8 hours Start 2024.05.31 @ 23:12:37 End 2024.05.31 @ 23:24:11 Sessions 1 Manual Loads 0 Difficulty Rogue Special Mode None Game No. 9 Rogue 9 Adventurer 0 Explorer 0 Win Type - Total 0 Types 0/0/0/0/0/0/0/0/0 Lore% 6 Gallery% 11 Achievement% 12 Wizard Run 0 Options --------- Layout 1 ASCII 0 Keyboard 0 Movement Arrows Keybinds 0 Fullscreen 1 Font 16/SmallcapsGlow Map View 50x40 Zoom Use 0% Tactical HUD 0 Map Filters NONE Filters NONE Steam SD RUN: 0df2398f-e096-4696-ad8f-bb1493fefc5c